[Event "Fall GM-B Norm Invitational 2022"]
[Site "Charlotte"]
[Date "2022.11.21"]
[Round "7"]
[White "Williams, Justus"]
[Black "Kantor, Gergely"]
[Result "1-0"]
[ECO "A07"]
[WhiteElo "2395"]
[BlackElo "2561"]
[Annotator "TA"]
[PlyCount "137"]
[EventDate "2022.11.18"]
[EventType "tourn"]
[EventCountry "USA"]
[SourceTitle "playchess.com"]
[Source "ChessBase"]
[SourceQuality "1"]
[TimeControl "5400+30"]

{[%evp 11,137,7,0,0,7,-32,-33,-33,-3,-32,-42,-86,-81,-78,-39,-95,-11,-35,-10,-15,2,0,1,-63,-53,-77,-38,-91,-71,-155,-137,-144,-114,-147,-116,-144,-135,-211,-210,-234,-202,-217,-216,-299,-157,-303,-196,-274,-274,-278,-280,-274,-277,-320,-297,-331,-322,-321,-294,-618,-623,-600,-547,-587,-510,-453,0,0,0,0,81,81,416,416,655,606,29956,12794,2196,616,610,614,607,607,598,564,609,525,592,550,662,494,708,701,687,679,687,679,665,658,635,627,4702,4120,725,6303,6008,5963,5397,5267,5171,4229,2288,1610,1323,1172,1243,1161,3442,3442,6809,6310,5987,5169,5614,5265,1786,1008]} 1. Nf3 {[%emt 0:00:33]} d5 2. g3 {[%emt 0:00:22]} g6 {[%emt 0:04:09]} 3. Bg2 {[%emt 0:01:07]} Bg7 {[%emt 0:00:06]} 4. O-O {[%emt 0:00:35]} e5 {[%emt 0:00:11]} 5. d3 {[%emt 0:00:24]} Ne7 {[%emt 0:00:14]} 6. c4 {[%emt 0:00:42]} c6 {[%emt 0:00:32]} 7. e4 {[%emt 0:01:13] A07: Réti Opening: New York and Capablanca Systems.} O-O {[%emt 0:00:17]} 8. Nc3 {[%emt 0:06:11] 8.b4 injects fresh life into this line.} d4 {[%emt 0:02:39]} 9. Ne2 {[%emt 0:01:10] Black is slightly better.} f5 {[%emt 0:22:13] [#]} 10. c5 $146 {[%emt 0:10:56]} ({Predecessor:} 10. Ne1 fxe4 11. dxe4 a5 12. b3 Na6 13. Nd3 Nb4 14. Ba3 Nxd3 15. Qxd3 b6 16. c5 {0-1 (36) Marsalek,Z (2249)-Kislinsky,A (2487) Stare Mesto 2014}) 10... Kh8 {[%emt 0:05:22]} 11. Bg5 {[%emt 0:06:13]} fxe4 {[%emt 0:04:04]} 12. dxe4 {[%emt 0:01:07]} Na6 {[%emt 0:00:40]} 13. Rc1 {[%emt 0:04:34]} (13. b4 $15) 13... Bg4 {[%emt 0:11:28]} ({Black should try} 13... h6 $1 $17 {[%cal Rh6g5]} 14. Bxh6 Bxh6 15. Nxe5 Bg7) 14. Qd3 {[%emt 0:04:32]} h6 {[%emt 0:12:31]} (14... Nb4 $5 {[%cal Rb4d3]} 15. Qc4 Na6 $17) 15. Bd2 {[%emt 0:02:47]} Nc7 {[%emt 0:05:26]} 16. Ba5 {[%emt 0:02:47]} Rb8 {[%emt 0:01:42]} 17. h3 {[%emt 0:05:01]} (17. Ne1 $11) 17... Bc8 $36 {[%emt 0:03:02][%mdl 2048] Black has good play.} 18. Bb4 {[%emt 0:06:45]} Na6 {[%emt 0:02:15]} 19. Be1 {[%emt 0:09:48]} (19. Ba3 $15) 19... b6 $17 {[%emt 0:00:34]} 20. cxb6 {[%emt 0:01:23]} (20. b4 $142) 20... axb6 {[%emt 0:05:41]} 21. b4 {[%emt 0:01:42]} Nc7 {[%emt 0:00:26]} 22. Nd2 {[%emt 0:00:38]} Ba6 {[%emt 0:02:51]} 23. Nc4 {[%emt 0:00:12]} Nc8 $1 {[%emt 0:07:45]} 24. a4 {[%emt 0:07:00]} (24. Qd2 $17 {was worth a try.}) 24... Nd6 $1 $19 {[%emt 0:00:28]} 25. b5 {[%emt 0:00:09]} cxb5 {[%emt 0:01:18]} 26. Nxd6 {[%emt 0:00:31]} Qxd6 {[%emt 0:00:57]} 27. Qb1 {[%emt 0:00:57]} Qd7 {[%emt 0:01:43]} (27... bxa4 $19 28. Bb4 Qd7 29. Bxf8 Bxf8) 28. Bb4 {[%emt 0:01:06]} (28. axb5 $17 Qxb5 29. Qxb5 Nxb5 30. Bb4) 28... Rfc8 {[%emt 0:00:32]} 29. Rfd1 {[%emt 0:04:38]} (29. axb5 $142 Bxb5 30. Rfe1) 29... bxa4 {[%emt 0:01:06]} 30. Nc3 {[%emt 0:00:02]} Bc4 {[%emt 0:01:52] Strongly threatening ...Bb3.} 31. Nxa4 {[%emt 0:01:13]} Na6 {[%emt 0:00:45]} 32. Nb2 {[%emt 0:01:04]} Bb3 {[%emt 0:01:09]} (32... Nxb4 33. Nxc4 Qe7 34. Bf1 $17) 33. Rd3 {[%emt 0:01:04]} Bc2 {[%emt 0:01:06]} ({Stronger than} 33... Nxb4 34. Rxb3 Rxc1+ 35. Qxc1 $17) 34. Rxc2 {[%emt 0:01:13]} Rxc2 {[%emt 0:00:07]} ({Weaker is} 34... Nxb4 35. Rxc8+ Qxc8 36. Rb3 $17) 35. Bd2 {[%emt 0:00:09]} (35. Qxc2 Nxb4 36. Qd1) 35... Rbc8 {[%emt 0:00:34] aiming for ...Qb5.} 36. Bf1 {[%emt 0:00:08]} Qc6 {[%emt 0:01:16]} 37. Rb3 {[%emt 0:01:01]} Rxd2 {[%emt 0:00:22]} 38. Nc4 {[%emt 0:00:02] [#]} Qxc4 $2 {[%emt 0:01:28]} 39. Bxc4 $11 {[%emt 0:00:14]} Rxc4 {[%emt 0:00:05]} 40. Rxb6 {[%emt 0:00:25]} Rdc2 {[%emt 0:00:50] [#]} 41. Qb5 $1 $16 {[%emt 0:00:27]} Nc7 {[%emt 0:00:19][%mdl 8192] Inhibits Qe8+. Black cannot hold the game after this.} (41... Rc1+ $2 42. Kg2 Rc8 43. Qxa6 $18) (41... Rc8 $16 {is a better chance.} 42. Qxa6 (42. Rxa6 Rf8 $16) 42... Rf8) 42. Qd7 $18 {[%emt 0:00:31]} Kh7 {[%emt 0:00:32]} (42... Ne6 $142) 43. Qd6 {[%emt 0:00:26]} Na8 {[%emt 0:00:40]} 44. Qxg6+ {[%emt 0:00:13]} Kh8 {[%emt 0:00:02] White is clearly winning.} 45. Re6 {[%emt 0:04:37]} (45. Qe8+ $142 Kh7 46. Rb8 (46. Qxa8 d3 $11)) 45... Rc8 {[%emt 0:00:52]} 46. Re8+ {[%emt 0:00:11]} Rxe8 {[%emt 0:00:08]} 47. Qxe8+ {[%emt 0:00:03]} Kh7 {[%emt 0:00:04][%cal Od4d3] Hoping for ...d3!} 48. Qxa8 {[%emt 0:00:05][%mdl 4096] Endgame KQ-KRB} d3 {[%emt 0:00:24]} 49. Qd5 {[%emt 0:00:17]} d2 {[%emt 0:00:27] White must now prevent ...Rc1+.} 50. Kg2 {[%emt 0:00:01]} h5 {[%emt 0:01:22]} 51. Qd7 {[%emt 0:01:12]} Kg8 {[%emt 0:00:42]} (51... h4 $142 52. Kf3 Kg8 53. Qe8+ Kh7) 52. Qd3 {[%emt 0:02:21]} Ra2 {[%emt 0:00:39]} 53. Qd8+ {[%emt 0:00:29]} Kf7 {[%emt 0:00:28]} 54. Qd7+ {[%emt 0:01:12]} Kf8 {[%emt 0:00:28]} 55. Qd6+ {[%emt 0:01:11]} Kf7 {[%emt 0:00:18]} 56. Kf3 {[%emt 0:04:04]} Bh6 {[%emt 0:00:32]} 57. Ke2 {[%emt 0:00:08]} Ra1 {[%emt 0:00:33]} 58. Qd7+ {[%emt 0:00:12]} Kg8 {[%emt 0:00:19]} 59. Qe6+ {[%emt 0:00:10]} Kh7 {[%emt 0:00:14]} 60. Qf5+ {[%emt 0:00:34]} Kg8 {[%emt 0:01:06]} 61. Qg6+ {[%emt 0:00:08]} Bg7 {[%emt 0:00:25]} 62. Kxd2 {[%emt 0:00:14]} Ra2+ {[%emt 0:00:10]} 63. Ke1 {[%emt 0:00:09] Qe6+ is the strong threat.} Ra1+ {[%emt 0:00:31]} 64. Ke2 {[%emt 0:00:03]} Ra2+ {[%emt 0:00:04]} 65. Kf1 {[%emt 0:00:11]} Ra1+ {[%emt 0:00:11]} 66. Kg2 {[%emt 0:00:02]} h4 {[%emt 0:00:12]} 67. Qe8+ {[%emt 0:00:22]} Kh7 {[%emt 0:00:08]} 68. Qh5+ {[%emt 0:00:05]} Kg8 {[%emt 0:00:30]} 69. Qxh4 {[%emt 0:00:04] Weighted Error Value: White=0.48/Black=0.58} 1-0

[Event "Fall GM-B Norm Invitational 2022"]
[Site "Charlotte"]
[Date "2022.11.21"]
[Round "7"]
[White "Ngo, Bach"]
[Black "Ozenir, Ekin Baris"]
[Result "0-1"]
[ECO "E11"]
[WhiteElo "2275"]
[BlackElo "2352"]
[Annotator "TA"]
[PlyCount "68"]
[EventDate "2022.11.18"]
[EventType "tourn"]
[EventCountry "USA"]
[SourceTitle "playchess.com"]
[Source "ChessBase"]
[SourceQuality "1"]
[TimeControl "5400+30"]

{[%evp 12,68,39,28,29,33,41,22,41,10,33,24,33,0,38,37,32,31,28,2,8,4,40,32,35,35,28,27,27,0,16,0,-5,-86,-91,-180,-184,-192,-198,-350,-297,-283,-218,-221,-226,-322,-328,-325,-307,-410,-435,-405,-382,-492,-505,-467,-426,-411,-416]} 1. d4 {[%emt 0:04:29]} e6 {[%emt 0:00:18]} 2. c4 {[%emt 0:00:22]} Nf6 {[%emt 0:00:12]} 3. Nf3 {[%emt 0:00:06]} Bb4+ {[%emt 0:00:50]} 4. Bd2 {[%emt 0:00:14]} c5 {[%emt 0:00:21]} 5. Bxb4 {[%emt 0:00:13]} cxb4 {[%emt 0:00:04]} 6. a3 {[%emt 0:00:08]} bxa3 {[%emt 0:00:50]} 7. Rxa3 {[%emt 0:00:19]} b6 {[%emt 0:01:22] E11: Bogo-Indian.} 8. Nc3 {[%emt 0:00:30]} Bb7 {[%emt 0:02:40] Prevents e4.} 9. d5 {[%emt 0:02:43]} O-O {[%emt 0:02:12] The position is equal.} 10. e3 {[%emt 0:10:53]} a5 {[%emt 0:04:22]} 11. Be2 {[%emt 0:01:01]} Na6 {[%emt 0:02:36]} 12. O-O {[%emt 0:01:49] [#]} d6 $146 {[%emt 0:05:53]} ({Predecessor:} 12... Nc5 13. Qd4 Re8 14. Rd1 exd5 15. cxd5 Nfe4 16. Bb5 Nxc3 17. Qxc3 Re4 18. Rd4 Rc8 {1-0 (47) Socko,M (2463)-Naiditsch,A (2711) Jurmala 2015}) 13. dxe6 {[%emt 0:07:12]} fxe6 {[%emt 0:00:12]} 14. Nd4 {[%emt 0:00:55]} Nc5 {[%emt 0:03:54]} 15. Na4 {[%emt 0:09:25]} Nfd7 {[%emt 0:04:20]} 16. Bf3 {[%emt 0:01:28]} Qb8 {[%emt 0:15:20]} 17. Bxb7 {[%emt 0:12:34]} Qxb7 {[%emt 0:00:50]} 18. Nxc5 {[%emt 0:10:01]} Nxc5 {[%emt 0:01:18]} 19. Nb5 {[%emt 0:03:49]} Rad8 {[%emt 0:01:12]} 20. Qd4 {[%emt 0:00:12]} ({But not} 20. Nxd6 $2 Qc6 21. Ra1 Rxd6 $19) 20... Qf7 {[%emt 0:04:09]} 21. f3 {[%emt 0:03:07]} ({Don't go for} 21. Nxd6 $2 Qe7 22. Rd1 Nb7 23. Qxb6 (23. c5 $2 bxc5 24. Qa4 Rxd6 $19) 23... Rxd6 24. Rxd6 Nxd6 $19) 21... d5 {[%emt 0:02:54]} 22. Rc3 {[%emt 0:02:41]} (22. cxd5 $11 {remains equal.} Rxd5 23. Qc4) 22... Qg6 $17 {[%emt 0:02:25] Hoping for ...dxc4.} 23. b3 {[%emt 0:10:24]} (23. Na7 $17 {was necessary.} Qe8 24. Nb5) 23... dxc4 $19 {[%emt 0:03:27]} 24. Qxc4 {[%emt 0:00:16]} Rd2 {[%emt 0:00:08][%csl Gd2][%cal Rg6g2] [#]} 25. g3 {[%emt 0:02:14]} (25. Qg4 {was the only chance.}) 25... Qh5 {[%emt 0:01:17][%csl Gd2][%cal Rh5h2]} 26. Qh4 {[%emt 0:00:16]} Qxh4 {[%emt 0:01:04]} 27. gxh4 {[%emt 0:00:05]} Rf6 {[%emt 0:00:14]} 28. h5 {[%emt 0:01:01]} (28. Kh1 $142) 28... Rf5 {[%emt 0:00:32] [#] aiming for ...Rg5+.} 29. h4 {[%emt 0:01:09] Prevents Rg5+.} Rxh5 {[%emt 0:00:30]} 30. Rf2 {[%emt 0:00:24]} Rxf2 {[%emt 0:01:03]} 31. Kxf2 {[%emt 0:00:08]} Rxh4 {[%emt 0:00:02]} 32. Nd6 {[%emt 0:00:17]} Rb4 {[%emt 0:00:27]} 33. Nc4 {[%emt 0:00:35]} Nxb3 {[%emt 0:00:16]} 34. Ne5 {[%emt 0:00:10][%cal Rc3c8]} Nc5 {[%emt 0:00:06] Weighted Error Value: White=0.36/Black=0.12 (very precise)} 0-1

[Event "Fall GM-B Norm Invitational 2022"]
[Site "Charlotte"]
[Date "2022.11.21"]
[Round "8"]
[White "Kantor, Gergely"]
[Black "Ngo, Bach"]
[Result "1-0"]
[ECO "E10"]
[WhiteElo "2561"]
[BlackElo "2275"]
[Annotator "TA"]
[PlyCount "67"]
[EventDate "2022.11.18"]
[EventType "tourn"]
[EventCountry "USA"]
[SourceTitle "playchess.com"]
[Source "ChessBase"]
[SourceQuality "1"]
[TimeControl "5400+30"]

{[%evp 15,67,7,20,27,25,27,35,23,32,30,41,32,30,19,25,15,21,2,4,4,12,-25,20,6,11,0,15,0,0,0,0,0,344,344,344,344,344,330,305,226,235,231,221,188,192,204,441,441,459,445,472,462,452,433]} 1. d4 {[%emt 0:03:12]} Nf6 {[%emt 0:00:13]} 2. c4 {[%emt 0:00:06]} e6 {[%emt 0:00:10]} 3. Nf3 {[%emt 0:00:02]} d5 {[%emt 0:00:07]} 4. cxd5 {[%emt 0:00:02]} exd5 {[%emt 0:00:09]} 5. Nc3 {[%emt 0:00:01]} c6 {[%emt 0:00:22]} 6. Bf4 {[%emt 0:00:04]} Bd6 {[%emt 0:00:51]} 7. Bxd6 {[%emt 0:00:03]} Qxd6 {[%emt 0:00:07]} 8. e3 {[%emt 0:00:01]} Bf5 {[%emt 0:02:17]} 9. Nh4 {[%emt 0:00:12] D35: Queen's Gambit Declined: Exchange Variation.} Bg6 {[%emt 0:00:56]} 10. Qb3 {[%emt 0:01:18]} Qe7 {[%emt 0:01:19] [#]} 11. Be2 $146 {[%emt 0:00:38] White is slightly better.} ({Predecessor:} 11. Nxg6 hxg6 12. Bd3 O-O 13. O-O a5 14. a3 Na6 15. Rfe1 Qd6 16. Bxa6 bxa6 17. Re2 {1-0 (66) Carlsen,M (2856)-Vidit,S (2710) chess24.com INT 2022}) 11... O-O {[%emt 0:00:24]} 12. Nxg6 {[%emt 0:00:42]} hxg6 {[%emt 0:00:15]} 13. O-O {[%emt 0:00:05]} Ne8 {[%emt 0:01:18]} 14. Bd3 {[%emt 0:02:18]} Nd6 {[%emt 0:01:20]} 15. Rae1 {[%emt 0:00:17][%cal Ba1e1,Be1e5,Be5h5,Bh5h8][%mdl 32]} Nd7 {[%emt 0:05:30][%cal Bb8d7,Bd7b6,Bb6c4][%mdl 32]} 16. e4 {[%emt 0:08:19]} dxe4 $1 {[%emt 0:05:23]} 17. Nxe4 {[%emt 0:00:08]} Nb6 {[%emt 0:05:55]} 18. Nc5 {[%emt 0:00:21]} Qf6 {[%emt 0:01:31]} (18... Qh4 $5 {[%cal Rh4d4]}) 19. Re5 {[%emt 0:00:18]} Qf4 {[%emt 0:19:42]} 20. Bxg6 {[%emt 0:30:42] [#] Rh5 is the strong threat.} Nbc4 {[%emt 0:06:07]} 21. Bh7+ {[%emt 0:25:43]} Kxh7 {[%emt 0:00:30]} 22. Qh3+ {[%emt 0:00:11]} Kg8 {[%emt 0:00:21]} 23. Rh5 {[%emt 0:00:35][%csl Gh3][%cal Rh5h8]} g6 $2 {[%emt 0:10:17][%mdl 8192] [#]} (23... f5 $11 24. Rh8+ Kf7 25. Qh5+ Kf6 26. Nd7+ Ke7 27. Nxf8 Rxf8) 24. Rh8+ $18 {[%emt 0:02:16]} Kg7 {[%emt 0:00:10]} 25. Qh7+ {[%emt 0:02:42]} ({Resist} 25. Rh7+ $6 Kg8 $18) 25... Kf6 {[%emt 0:00:32]} 26. Nd7+ {[%emt 0:00:17]} Ke7 {[%emt 0:01:14]} 27. Nxf8 {[%emt 0:00:08] Dancing on a razor blade.} Rxf8 {[%emt 0:01:02]} 28. Re1+ {[%emt 0:00:11]} Ne4 {[%emt 0:00:19]} 29. Qh4+ {[%emt 0:03:54]} Qxh4 {[%emt 0:01:08]} 30. Rxh4 {[%emt 0:00:07]} Nxb2 $2 {[%emt 0:00:25]} (30... Ncd2 {might work better.} 31. f3 (31. Rhxe4+ Nxe4 32. Rxe4+ Kf6 $14) 31... Rd8 32. fxe4 Rxd4) 31. Rhxe4+ {[%emt 0:00:19] White is clearly winning.} Kd6 {[%emt 0:00:16]} 32. Rb1 {[%emt 0:01:07]} f5 {[%emt 0:01:01]} 33. Re2 {[%emt 0:01:57]} ({Weaker is} 33. Rxb2 fxe4 34. Rxb7 a5 $16) 33... Nd3 {[%emt 0:01:14]} 34. Rxb7 {[%emt 0:02:06] Weighted Error Value: White=0.08 (flawless) /Black=0.45} 1-0

[Event "Fall GM-B Norm Invitational 2022"]
[Site "Charlotte"]
[Date "2022.11.21"]
[Round "8"]
[White "Cruz, Cristhian"]
[Black "Beradze, Irakli"]
[Result "0-1"]
[ECO "D45"]
[WhiteElo "2552"]
[BlackElo "2494"]
[Annotator "TA"]
[PlyCount "86"]
[EventDate "2022.11.18"]
[EventType "tourn"]
[EventCountry "USA"]
[SourceTitle "playchess.com"]
[Source "ChessBase"]
[SourceQuality "1"]
[TimeControl "5400+30"]

{[%evp 19,86,0,10,0,0,4,44,36,36,59,68,78,83,75,66,71,98,91,90,70,108,70,57,51,53,47,99,96,158,62,93,70,71,0,0,0,0,0,0,0,0,0,0,0,0,0,0,-64,-76,-71,-72,-70,-70,-147,-145,-142,-150,-313,-297,-278,-173,-418,-409,-522,-519,-1390,-1076,-29988,-29989]} 1. d4 {[%emt 0:02:17] Cummings,D} d5 {[%emt 0:00:19]} 2. c4 {[%emt 0:00:37]} e6 {[%emt 0:00:23]} 3. Nc3 {[%emt 0:00:50]} c6 {[%emt 0:00:04]} 4. e3 {[%emt 0:00:22]} Nf6 {[%emt 0:00:10]} 5. Nf3 {[%emt 0:01:12]} Nbd7 {[%emt 0:00:12]} 6. Qc2 {[%emt 0:00:22]} Bd6 {[%emt 0:00:12]} 7. Bd3 {[%emt 0:00:23]} O-O {[%emt 0:00:36]} 8. O-O {[%emt 0:00:06]} dxc4 {[%emt 0:07:31]} 9. Bxc4 {[%emt 0:00:07]} a6 {[%emt 0:00:03]} 10. Rd1 Qc7 11. Ne4 {[%emt 0:26:39] D46: Semi-Slav: 5 e3 Nbd7 6 Bd3, Black avoids the Meran.} Nxe4 {[%emt 0:13:47]} 12. Qxe4 {[%emt 0:00:05]} c5 {[%emt 0:00:32][%cal Ob7b5]} 13. Bd3 {[%emt 0:03:52][%csl Gd3][%cal Re4h7] White is slightly better.} Nf6 {[%emt 0:00:41]} 14. Qh4 {[%emt 0:00:06]} e5 {[%emt 0:00:49]} 15. dxe5 {[%emt 0:06:30]} Bxe5 {[%emt 0:00:02]} 16. Nxe5 {[%emt 0:00:28]} Qxe5 {[%emt 0:00:03]} 17. Bd2 {[%emt 0:00:21] Strongly threatening Bc3.} Qxb2 {[%emt 0:04:05]} 18. Rac1 $36 {[%emt 0:07:16][%mdl 2048] [#] Black is under strong pressure.} Qb6 $146 {[%emt 0:00:35]} ({Predecessor:} 18... h6 19. Bc3 Qb6 20. a4 Re8 21. a5 Qe6 22. Bc4 Qe7 23. Bxf6 Qxf6 24. Qxf6 gxf6 {½-½ (51) Cummings,D (2373)-Lesiege,A (2572) Richmond 2002 CBM 088 [Cummings,D]}) 19. e4 {[%emt 0:10:21] And now e5 would win.} Rd8 {[%emt 0:11:00]} 20. Be3 {[%emt 0:09:13]} Qb4 $1 {[%emt 0:16:06]} 21. Bxc5 {[%emt 0:07:35]} Qb2 {[%emt 0:01:24][%cal Od8d3]} 22. Be3 {[%emt 0:00:30][%cal Oe4e5] Hoping for e5! This bishop pair is nice.} Bg4 {[%emt 0:23:20]} (22... h6 $1 $14) 23. f3 $16 {[%emt 0:01:01]} Bd7 {[%emt 0:00:34]} ({Black should play} 23... Be6) 24. Rc2 {[%emt 0:17:32]} (24. e5 $1 $16 {[%cal Re5f6]} Qxe5 25. Bd4) 24... Qa3 {[%emt 0:02:07]} 25. Bb6 {[%emt 0:03:02]} Ba4 {[%emt 0:02:41] [#]} 26. Bxd8 {[%emt 0:00:14]} ({White should try} 26. Bc5 $1 $16 {[%cal Rc5a3]} Bxc2 27. Bxa3 Bxd1 28. e5 Rxd3 29. exf6) 26... Rxd8 $11 {[%emt 0:00:00]} 27. e5 {[%emt 0:00:27] Bxh7+ is the strong threat.} Bxc2 {[%emt 0:02:26]} 28. Bxh7+ $1 {[%emt 0:00:28]} Nxh7 {[%emt 0:00:28]} 29. Rxd8+ {[%emt 0:00:07]} Nf8 {[%emt 0:00:02]} 30. Qd4 {[%emt 0:00:27] Against Qe3+} Ba4 {[%emt 0:04:49]} 31. h4 {[%emt 0:00:24]} Bc6 {[%emt 0:00:23]} (31... Qxa2 $2 32. Qb4 Kh7 33. Rxf8 (33. Qxf8 Qa1+ 34. Kh2 Qxe5+ 35. Kh3 Qf5+ 36. Kh2 Qe5+ 37. Kh3 Qf5+ 38. Kh2 Qe5+ $11) 33... Qa1+ 34. Kf2 $18) 32. Kh2 {[%emt 0:01:08]} Kh7 {[%emt 0:01:09]} 33. Ra8 {[%emt 0:01:41]} ({Better is} 33. Qd6 $11 Qxd6 34. exd6) 33... Qe7 $1 $15 {[%emt 0:00:51]} 34. h5 {[%emt 0:00:57] [#] Inhibits Ng6.} g6 $1 {[%emt 0:04:40]} 35. e6 {[%emt 0:00:42]} gxh5 {[%emt 0:01:18]} 36. Qd3+ {[%emt 0:00:36]} (36. exf7 $1 $15 Qxf7 37. Rd8) 36... Ng6 $17 {[%emt 0:00:33] Threatens to win with ...Qh4+.} 37. exf7 {[%emt 0:00:18]} Qxf7 {[%emt 0:00:21]} 38. Qd8 $2 {[%emt 0:00:07] Now White is beyond hope.} (38. a3 $17 {keeps fighting.}) 38... Qxa2 $19 {[%emt 0:03:03]} 39. Rc8 {[%emt 0:00:42]} Qd5 {[%emt 0:00:43]} ({Weaker is} 39... Bxf3 40. Qc7+ Kh6 41. Qc1+ Kh7 42. Rc7+ Kg8 43. Rc8+ (43. Qg5 Be4 $17) 43... Kh7 44. Rc7+ Kg8 45. Rc2 $11 (45. Qg5 Be4 $15)) 40. Qb6 $2 {[%emt 0:00:35]} (40. Qxd5 {might work better.} Bxd5 41. Rc5) 40... Qe5+ {[%emt 0:00:33]} 41. Kh1 {[%emt 0:00:09]} h4 {[%emt 0:00:39]} 42. Qb3 {[%emt 0:01:01]} (42. Qd8 $142 a5 43. Rc7+ Kh6 44. Rf7) 42... h3 {[%emt 0:01:01] ( -> ...hxg2+)} 43. gxh3 {[%emt 0:00:38]} Qe1+ {[%emt 0:00:08] Weighted Error Value: White=0.70/Black=0.14 (very precise)} 0-1

[Event "Fall GM-B Norm Invitational 2022"]
[Site "Charlotte"]
[Date "2022.11.21"]
[Round "8"]
[White "Paragua, Mark"]
[Black "Korley, Kassa"]
[Result "1/2-1/2"]
[ECO "C47"]
[WhiteElo "2466"]
[BlackElo "2451"]
[Annotator "TA"]
[PlyCount "40"]
[EventDate "2022.11.18"]
[EventType "tourn"]
[EventCountry "USA"]
[SourceTitle "playchess.com"]
[Source "ChessBase"]
[SourceQuality "1"]
[TimeControl "5400+30"]

{[%evp 16,27,0,0,0,0,0,0,0,0,0,0,0,0]} 1. e4 {[%emt 0:00:04]} e5 {[%emt 0:00:04]} 2. Nf3 {[%emt 0:00:04]} Nc6 {[%emt 0:00:13]} 3. Nc3 {[%emt 0:00:06]} Nf6 {[%emt 0:00:06]} 4. d4 {[%emt 0:00:05]} exd4 {[%emt 0:00:05]} 5. Nxd4 {[%emt 0:00:05]} Bb4 {[%emt 0:00:05]} 6. Nxc6 {[%emt 0:00:05]} bxc6 {[%emt 0:00:05]} 7. Bd3 {[%emt 0:00:06]} d5 {[%emt 0:00:10]} 8. Bd2 {[%emt 0:00:13]} O-O {[%emt 0:00:28]} 9. O-O {[%emt 0:00:06] The position is equal.} Rb8 {[%emt 0:00:45] C47: Scotch Four Knights and Four Knights with 4 g3.} 10. Re1 {[%emt 0:00:59]} Re8 {[%emt 0:00:23]} 11. exd5 Rxe1+ {[%emt 0:00:30]} 12. Qxe1 cxd5 {[%emt 0:00:30]} 13. a3 Bf8 {[%emt 0:00:30]} 14. b4 {[#] An even fight not without its subleties.  Weighted Error Value: White=0.00 (flawless) /Black=0.00 (flawless)} {Predecessor:} Rb6 $146 15. Rd1 Bb7 16. Bg5 h6 17. Bh4 g5 18. Bg3 Re6 19. Qf1 Nh5 20. Bf5 Rf6 {1-0 (52) Kunin,V (2567)-Ivanisevic,I (2606) Chess.com INT 2021} 1/2-1/2